bitfinex/quotes_BTCUSD_20220303
["timestamp","ask_amount","ask_price","bid_price","bid_amount"]
[1646350047029,0.23024474,42574.0,42571.0,0.21422185]
[1646350048890,0.0472,42577.0,42571.0,0.21422185]
[1646350049489,0.0472,42577.0,42571.0,0.33175485]
[1646350049692,0.1165,42581.0,42573.0,0.27240123]
[1646350049889,0.1165,42581.0,42579.0,0.18123867]
[1646350050094,0.005042,42585.0,42579.0,0.15623867]
[1646350050690,0.19937528,42585.0,42579.0,0.15623867]
[1646350050893,0.005042,42585.0,42579.0,0.15623867]
[1646350051090,0.23065169,42584.0,42571.0,0.62388685]
[1646350051492,0.23065169,42584.0,42574.0,0.058765]
[1646350051723,0.26506148,42577.0,42574.0,0.058765]
[1646350052324,0.26506148,42577.0,42574.0,0.25248131]
[1646350052728,0.35035016,42586.0,42574.0,0.25248131]
[1646350053426,0.7159,42585.0,42574.0,0.25248131]
[1646350053628,0.7631,42585.0,42574.0,0.19371631]
[1646350053827,0.18181309,42581.0,42575.0,0.058767]
[1646350054426,0.18181309,42581.0,42574.0,0.19371631]
[1646350055026,0.18181309,42581.0,42571.0,0.4215]
[1646350055479,0.18181309,42581.0,42571.0,0.1215]
[1646350056080,0.18281309,42581.0,42571.0,0.1215]
[1646350056780,0.001,42581.0,42571.0,0.1215]
[1646350057682,0.20464685,42575.0,42571.0,0.1215]
[1646350057885,0.20464685,42575.0,42568.0,0.7494]
[1646350058182,0.001,42581.0,42568.0,0.7494]
[1646350058583,0.001,42581.0,42568.0,0.4494]
[1646350058584,0.7631,42580.0,42568.0,0.4494]
[1646350058784,0.0472,42580.0,42568.0,0.4494]
[1646350059428,0.19079986,42578.0,42568.0,0.4494]
[1646350059627,0.25404135,42573.0,42568.0,0.4494]
[1646350059828,0.0472,42580.0,42568.0,0.05877]
[1646350060828,0.0472,42580.0,42568.0,0.22371145]
[1646350061030,0.0472,42580.0,42568.0,0.05877]
[1646350061730,0.0472,42580.0,42574.0,0.21590166]
[1646350062131,0.17061888,42579.0,42574.0,0.21590166]
[1646350062330,0.0472,42581.0,42574.0,0.21590166]
[1646350062532,0.0472,42581.0,42574.0,0.27466866]
[1646350063184,0.0472,42581.0,42574.0,0.21590166]
[1646350063381,0.0472,42581.0,42570.0,0.058767]
[1646350063382,0.16386729,42578.0,42570.0,0.058767]
[1646350063581,0.0472,42581.0,42571.0,0.05877]
[1646350063782,0.7394,42580.0,42567.0,0.240741]
[1646350063984,0.7866,42580.0,42567.0,0.1182]
[1646350064181,0.28829741,42568.0,42567.0,0.1182]
[1646350064382,0.35221828,42579.0,42566.0,0.48708826]
[1646350064783,0.16832224,42573.0,42566.0,0.48708826]
[1646350064984,0.1897,42579.0,42566.0,0.48708826]
[1646350065386,0.2758249,42571.0,42566.0,0.48708826]
[1646350066185,0.9056,42579.0,42566.0,0.48708826]
[1646350066384,0.8821,42579.0,42568.0,0.058775]
[1646350067034,0.21103691,42572.0,42568.0,0.058775]
[1646350067239,0.20106141,42576.0,42568.0,0.058775]
[1646350069838,0.22364081,42569.0,42568.0,0.058775]
[1646350070039,0.20106141,42576.0,42568.0,0.058775]
[1646350070241,0.20106141,42576.0,42566.0,0.18708826]
[1646350070502,0.0472,42575.0,42565.0,0.05878]
[1646350071101,0.20696508,42566.0,42564.0,0.1191]
[1646350071305,0.20696508,42566.0,42561.0,0.19834]
[1646350071697,0.25416508,42566.0,42561.0,0.19834]
[1646350071896,0.25416508,42566.0,42561.0,0.01174]
[1646350072096,0.25516508,42566.0,42561.0,0.01174]
[1646350072295,0.01017378,42558.0,42557.0,0.2123083]
[1646350072496,0.01017378,42558.0,42557.0,0.21273132]
[1646350072695,0.01017378,42558.0,42557.0,0.31263132]
[1646350073697,0.01017378,42558.0,42557.0,0.21273132]
[1646350074100,0.01017378,42558.0,42557.0,0.00042302]
[1646350074335,0.01017378,42558.0,42554.0,0.231478]
[1646350074934,0.01017378,42558.0,42554.0,0.117578]
[1646350076938,0.01017378,42558.0,42555.0,0.27182377]
[1646350077137,0.01017378,42558.0,42554.0,0.117578]
[1646350078378,0.01017378,42558.0,42554.0,0.417578]
[1646350078579,0.01017378,42558.0,42557.0,0.14]
[1646350078786,0.01017378,42558.0,42557.0,0.3]
[1646350079179,0.01017378,42558.0,42557.0,0.54053702]
[1646350079482,0.01017378,42558.0,42557.0,0.24053702]
[1646350081582,0.01017378,42558.0,42554.0,0.117578]
[1646350081831,0.01017378,42558.0,42556.0,0.058788]
[1646350083430,0.01017378,42558.0,42557.0,0.21653165]
[1646350084030,0.01017378,42558.0,42556.0,0.058788]
[1646350089236,0.01017378,42558.0,42556.0,0.31998841]
[1646350089433,0.01017378,42558.0,42556.0,0.058788]
[1646350090533,0.01017378,42558.0,42557.0,0.24679654]
[1646350091935,0.01017378,42558.0,42557.0,0.43305219]
[1646350092736,0.01017378,42558.0,42557.0,0.24679654]
[1646350092979,0.01017378,42558.0,42556.0,0.058788]
[1646350093779,0.01017378,42558.0,42556.0,0.26673439]
[1646350093978,0.01017378,42558.0,42557.0,0.25081651]
[1646350094179,0.01017378,42558.0,42556.0,0.058788]
[1646350094580,0.01017378,42558.0,42554.0,0.117578]
[1646350096181,0.01017378,42558.0,42554.0,0.283526]
[1646350097234,0.01017378,42558.0,42557.0,0.14]
[1646350099333,0.01174,42570.0,42559.0,0.0235]
[1646350099536,0.24303609,42574.0,42562.0,0.05877]
[1646350099537,0.19433328,42574.0,42562.0,0.05877]
[1646350099736,0.24303609,42577.0,42563.0,0.3]
[1646350099737,0.19433328,42575.0,42563.0,0.3]
[1646350100332,0.24303609,42578.0,42571.0,0.21950425]
[1646350100333,0.19433328,42576.0,42571.0,0.21950425]
[1646350100585,0.19433328,42576.0,42571.0,0.27827125]
[1646350101385,0.19433328,42576.0,42571.0,0.33703825]
[1646350101585,0.21257342,42576.0,42571.0,0.33703825]
[1646350101786,0.19433328,42577.0,42571.0,0.33703825]
[1646350102388,0.19433328,42577.0,42570.0,0.05202142]
[1646350102586,0.19433328,42577.0,42571.0,0.18720375]
[1646350103285,0.19433328,42577.0,42571.0,0.24597075]
[1646350103888,0.24303609,42580.0,42571.0,0.62823775]
[1646350103889,0.19433328,42580.0,42571.0,0.62823775]
[1646350104089,0.19433328,42581.0,42572.0,0.786915]
[1646350104833,0.26746574,42576.0,42572.0,0.72816]
[1646350105036,0.19433328,42580.0,42572.0,0.72816]
[1646350105237,0.19433328,42580.0,42572.0,0.70466]
[1646350105435,0.19433328,42577.0,42572.0,0.70466]
[1646350106234,0.19533328,42577.0,42572.0,0.70466]
[1646350107235,0.17193596,42575.0,42572.0,0.70466]
[1646350107435,0.21167527,42574.0,42572.0,0.70466]
[1646350108585,0.40600855,42574.0,42572.0,0.70466]
[1646350109184,0.39797004,42573.0,42572.0,0.70466]
[1646350109383,0.19433328,42573.0,42572.0,0.70466]
[1646350109784,0.40600855,42574.0,42572.0,0.70466]
[1646350110289,0.005,42573.0,42572.0,0.70466]
[1646350111388,0.19433328,42575.0,42572.0,0.70466]
[1646350113336,0.19433328,42575.0,42572.0,0.92689568]
[1646350113539,0.19433328,42577.0,42574.0,0.17929556]
[1646350113737,0.24303609,42578.0,42574.0,0.23805556]
[1646350113738,0.19433328,42578.0,42574.0,0.23805556]
[1646350114237,0.19433328,42580.0,42574.0,0.23805556]
[1646350114438,0.24303609,42582.0,42574.0,0.23805556]
[1646350114439,0.19433328,42579.0,42574.0,0.05876]
[1646350114639,0.19433328,42578.0,42574.0,0.05876]
[1646350115486,0.24280474,42577.0,42574.0,0.05876]
[1646350115686,0.19433328,42579.0,42574.0,0.05876]
[1646350116688,0.20538662,42576.0,42573.0,0.058765]
[1646350117487,0.19433328,42578.0,42573.0,0.058765]
[1646350118587,0.2615168,42577.0,42573.0,0.058765]
[1646350119329,0.2615168,42577.0,42573.0,0.358765]
[1646350119630,0.19433328,42580.0,42573.0,0.358765]
[1646350120028,0.19433328,42581.0,42573.0,0.358765]
[1646350120429,0.19433328,42581.0,42574.0,0.20869362]
[1646350120634,0.20696763,42578.0,42573.0,0.358765]
[1646350120832,0.20696763,42578.0,42573.0,0.058765]
[1646350124280,0.001,42578.0,42573.0,0.058765]
[1646350125381,0.19433328,42579.0,42573.0,0.058765]
[1646350125581,0.27327311,42577.0,42573.0,0.058765]
[1646350125983,0.19433328,42579.0,42573.0,0.058765]
[1646350127234,0.24365892,42576.0,42573.0,0.058765]
[1646350127636,0.19433328,42579.0,42573.0,0.058765]
[1646350128934,0.25379916,42578.0,42573.0,0.058765]
[1646350129135,0.19433328,42579.0,42573.0,0.058765]
[1646350129535,0.19384183,42579.0,42573.0,0.058765]
[1646350130337,0.20717556,42578.0,42573.0,0.058765]
[1646350131784,0.24303609,42580.0,42573.0,0.058765]
[1646350132387,0.24303609,42580.0,42572.0,0.30211119]
[1646350132785,0.27061515,42579.0,42572.0,0.30211119]
[1646350133287,0.27061515,42579.0,42573.0,0.058765]
[1646350133489,0.24303609,42581.0,42573.0,0.058765]
[1646350134335,0.24303609,42581.0,42574.0,0.117519]
[1646350134736,0.52926301,42581.0,42574.0,0.117519]
[1646350134937,0.19572837,42579.0,42574.0,0.117519]
[1646350135136,0.19572837,42579.0,42573.0,0.058765]
[1646350136237,0.19772837,42579.0,42573.0,0.058765]
[1646350136837,0.002,42579.0,42573.0,0.058765]
[1646350137437,0.24303609,42580.0,42573.0,0.058765]
[1646350138082,0.24303609,42579.0,42573.0,0.058765]
[1646350138880,0.24303609,42580.0,42573.0,0.058765]
[1646350139482,0.19432783,42577.0,42573.0,0.058765]
[1646350140484,0.19432783,42576.0,42572.0,0.30211119]
[1646350141290,0.260037,42574.0,42572.0,0.30211119]
[1646350142357,0.45436483,42574.0,42572.0,0.30211119]
[1646350144358,0.19432783,42573.0,42572.0,0.30211119]
[1646350145694,0.19432783,42574.0,42572.0,0.60211119]
[1646350145892,0.29137049,42580.0,42573.0,0.3]
[1646350145893,0.19432783,42575.0,42573.0,0.3]
[1646350146295,0.19432783,42575.0,42573.0,0.58942933]
[1646350146495,0.19432783,42575.0,42574.0,0.3]
[1646350146692,0.24303609,42578.0,42574.0,0.46343823]
[1646350146693,0.19432783,42576.0,42574.0,0.46343823]
[1646350147795,0.19432783,42575.0,42574.0,0.46343823]
[1646350147997,0.19432783,42575.0,42574.0,0.16343823]
[1646350148196,0.19432783,42575.0,42574.0,0.16543823]
[1646350148398,0.24303609,42578.0,42574.0,0.16543823]
[1646350148399,0.19432783,42576.0,42574.0,0.16543823]
[1646350149421,0.19432783,42576.0,42574.0,0.002]
[1646350149434,0.24303609,42578.0,42574.0,0.002]
[1646350149435,0.24303609,42575.0,42574.0,0.002]
[1646350149634,0.24303609,42575.0,42572.0,0.30211119]
[1646350149837,0.24303609,42574.0,42572.0,0.30211119]
[1646350150040,0.24303609,42573.0,42572.0,0.30211119]
[1646350150236,0.24303609,42573.0,42564.0,0.765]
[1646350150237,0.19782511,42570.0,42564.0,0.3038]
[1646350150438,0.19444514,42567.0,42564.0,0.3038]
[1646350150635,0.19444514,42567.0,42564.0,0.1812]
[1646350151035,0.19444514,42566.0,42560.0,0.2114]
[1646350151237,0.18452309,42565.0,42558.0,0.293869]
[1646350151541,0.16208661,42564.0,42558.0,0.293869]
[1646350151738,0.19444514,42564.0,42558.0,0.293869]
[1646350152138,0.19444514,42566.0,42558.0,0.293869]
[1646350152537,0.24931283,42561.0,42558.0,0.293869]
[1646350152992,0.24931283,42561.0,42555.0,0.4494]
[1646350153392,0.24931283,42561.0,42555.0,0.508192]
[1646350153792,0.24931283,42561.0,42555.0,0.058792]
[1646350154300,0.15921658,42557.0,42551.0,0.117581]
[1646350154894,0.15921658,42557.0,42549.0,0.53349]
[1646350155094,0.15921658,42557.0,42549.0,0.31569]
[1646350156295,0.27131673,42551.0,42549.0,0.31569]
[1646350156495,0.27131673,42551.0,42549.0,0.11759]
[1646350157039,0.31336912,42557.0,42549.0,0.11759]
[1646350157236,0.15921658,42557.0,42549.0,0.11759]
[1646350159440,0.26399662,42555.0,42551.0,0.058796]
[1646350159644,0.1696,42559.0,42551.0,0.058796]
[1646350159841,0.0472,42559.0,42551.0,0.058796]
[1646350160685,0.0472,42559.0,42554.0,0.15759835]
[1646350161086,0.0472,42559.0,42554.0,0.14759835]
[1646350161689,0.25253051,42561.0,42554.0,0.14759835]
[1646350161890,0.25253051,42561.0,42554.0,0.26517335]
[1646350162088,0.25253051,42561.0,42555.0,0.058787]
[1646350162294,0.01992015,42552.0,42548.0,0.39893382]
[1646350162490,0.01992015,42552.0,42551.0,0.14]
[1646350162890,0.01992015,42552.0,42551.0,0.198783]
[1646350164235,0.01992015,42552.0,42551.0,0.316355]
[1646350165238,0.01992015,42552.0,42551.0,0.41398872]
[1646350165439,0.01992015,42552.0,42551.0,0.18535088]
[1646350170688,0.01992015,42552.0,42551.0,0.16185088]
[1646350171088,0.01992015,42552.0,42551.0,0.22063088]
[1646350172136,0.01992015,42552.0,42551.0,0.16185088]
[1646350174141,0.01992015,42552.0,42551.0,0.22063088]
[1646350174342,0.1175,42565.0,42551.0,0.32063088]
[1646350174544,0.1175,42565.0,42555.0,0.058776]
[1646350174743,0.1175,42565.0,42564.0,0.0999]
[1646350174942,0.19782511,42570.0,42564.0,0.0999]
[1646350175341,0.26990403,42567.0,42564.0,0.0999]
[1646350175587,0.26990403,42567.0,42562.0,0.058776]
[1646350175787,0.26990403,42567.0,42559.0,0.29981137]
[1646350176585,0.26990403,42567.0,42559.0,0.117551]
[1646350176787,0.26990403,42567.0,42557.0,0.4494]
[1646350177789,0.26990403,42567.0,42557.0,0.6985361]
[1646350178987,0.2144392,42562.0,42557.0,0.6985361]
[1646350179233,0.2144392,42562.0,42557.0,0.4494]
[1646350180036,0.20665074,42560.0,42557.0,0.4494]
[1646350181038,0.2144392,42562.0,42557.0,0.4494]
[1646350181641,0.3,42561.0,42557.0,0.4494]
[1646350181838,0.2144392,42562.0,42557.0,0.4494]
[1646350182037,0.17443382,42558.0,42557.0,0.4494]
[1646350182537,0.2144392,42562.0,42557.0,0.4494]
[1646350182737,0.2547288,42558.0,42557.0,0.4494]
[1646350184387,0.2144392,42562.0,42557.0,0.4494]
[1646350185489,0.20741578,42558.0,42557.0,0.4494]
[1646350185688,0.2144392,42562.0,42557.0,0.4494]
[1646350186490,0.43206554,42562.0,42557.0,0.4494]
[1646350186748,0.26993878,42561.0,42557.0,0.4494]
[1646350186950,0.3,42566.0,42557.0,0.4494]
[1646350187851,0.26665779,42562.0,42557.0,0.4494]
[1646350188651,0.18845884,42565.0,42557.0,0.4494]
[1646350189454,0.18845884,42565.0,42559.0,0.16434522]
[1646350189653,0.18845884,42565.0,42557.0,0.4494]
[1646350189854,0.28274312,42563.0,42557.0,0.4494]
[1646350190057,0.28274312,42563.0,42557.0,0.44939988]
[1646350190487,0.18845884,42565.0,42557.0,0.44939988]
[1646350190691,0.18845884,42565.0,42556.0,0.19450423]
[1646350191891,0.28213553,42563.0,42556.0,0.19450423]
[1646350192091,0.28213553,42563.0,42555.0,0.24703022]
[1646350192292,0.21443991,42554.0,42553.0,0.8552]
[1646350192491,0.21443991,42554.0,42553.0,0.65429768]
[1646350192693,0.21443991,42554.0,42553.0,0.75429768]
[1646350193092,0.21443991,42554.0,42553.0,0.9237846]
[1646350194235,0.21443991,42554.0,42553.0,0.75429768]
[1646350195035,0.21443991,42554.0,42553.0,0.91422798]
[1646350195442,0.38254576,42565.0,42555.0,0.02144399]
[1646350195443,0.19408692,42565.0,42555.0,0.02144399]
[1646350195640,0.19408692,42567.0,42556.0,0.07207343]
[1646350195843,0.24260864,42569.0,42557.0,0.01432334]
[1646350195844,0.19408692,42569.0,42557.0,0.01432334]
[1646350196044,0.19408692,42569.0,42558.0,0.01492102]
[1646350196240,0.19408692,42569.0,42564.0,0.26482442]
[1646350196436,0.35467901,42569.0,42564.0,0.26482442]
[1646350196837,0.35467901,42569.0,42562.0,0.19657892]
[1646350197039,0.16059209,42569.0,42562.0,0.19657892]
[1646350197241,0.16059209,42569.0,42565.0,0.058772]
[1646350197641,0.19408692,42568.0,42559.0,0.1]
[1646350197839,0.27761749,42564.0,42559.0,0.1]
[1646350198500,0.27761749,42564.0,42563.0,0.0999]
[1646350198901,0.19408692,42567.0,42563.0,0.0999]
[1646350199097,0.19408692,42567.0,42558.0,0.11492102]
[1646350199298,0.19408692,42567.0,42558.0,0.01492102]
[1646350200098,0.15852668,42562.0,42558.0,0.01492102]
[1646350200299,0.15852668,42562.0,42558.0,0.11492102]
[1646350201103,0.15852668,42562.0,42558.0,0.41492102]
[1646350201300,0.19408692,42566.0,42558.0,0.41492102]
[1646350201499,0.42450231,42567.0,42558.0,0.41492102]
[1646350202137,0.19408692,42566.0,42558.0,0.41492102]
[1646350202334,0.2117372,42564.0,42558.0,0.41492102]
[1646350202533,0.2117372,42564.0,42558.0,0.41892102]
[1646350203738,0.2117372,42564.0,42558.0,0.41492102]
[1646350204136,0.19408692,42565.0,42558.0,0.41492102]
[1646350204337,0.19408692,42566.0,42558.0,0.41892102]
[1646350204835,0.19408692,42567.0,42558.0,0.41892102]
[1646350205236,0.20626709,42565.0,42558.0,0.41892102]
[1646350205689,0.20626709,42565.0,42558.0,0.41492102]
[1646350206492,0.20626709,42565.0,42558.0,0.41892102]
[1646350207290,0.19408692,42567.0,42558.0,0.47769802]
[1646350207691,0.19408692,42567.0,42558.0,0.47369802]
[1646350208093,0.19408692,42567.0,42564.0,0.28174572]
[1646350208292,0.19408692,42568.0,42565.0,0.16894258]
[1646350208694,0.19408692,42568.0,42565.0,0.46894258]
[1646350209339,0.19408692,42568.0,42566.0,0.5506383]
[1646350209539,0.19408692,42569.0,42566.0,0.5506383]
[1646350209939,0.19408692,42570.0,42566.0,0.5506383]
[1646350210339,0.19408692,42569.0,42566.0,0.5526383]
[1646350210539,0.29113037,42576.0,42567.0,0.01404912]
[1646350210540,0.19408692,42574.0,42567.0,0.01404912]
[1646350210738,0.24260864,42576.0,42569.0,0.01650782]
[1646350210739,0.19408692,42576.0,42569.0,0.01650782]
[1646350210940,0.19408692,42577.0,42573.0,0.14]
[1646350211139,0.19408692,42577.0,42569.0,0.31650782]
[1646350211140,0.19408692,42580.0,42569.0,0.3]
[1646350211341,0.24260864,42582.0,42574.0,0.21887705]
[1646350211342,0.19408692,42579.0,42574.0,0.21887705]
[1646350211542,0.19408692,42579.0,42574.0,0.27738235]
[1646350212140,0.19408692,42581.0,42575.0,0.058752]
[1646350212343,0.19408692,42581.0,42574.0,0.27738235]
[1646350212344,0.19408692,42579.0,42574.0,0.004]
[1646350212843,0.19408692,42578.0,42574.0,0.004]
[1646350213285,0.21151922,42575.0,42574.0,0.004]
[1646350213486,0.21151922,42575.0,42574.0,0.10737982]
[1646350214091,0.21151922,42575.0,42574.0,0.004]
[1646350214287,0.21151922,42575.0,42568.0,0.1]
[1646350214488,0.21151922,42575.0,42574.0,0.003]
[1646350215688,0.21151922,42575.0,42572.0,0.5506383]
[1646350216288,0.20751922,42575.0,42572.0,0.5506383]
[1646350216491,0.20751922,42575.0,42572.0,0.5546383]
[1646350216743,0.19408692,42574.0,42572.0,0.5546383]
[1646350216939,0.09563104,42571.0,42564.0,0.124]
[1646350217141,0.33691796,42571.0,42561.0,0.2082]
[1646350217338,0.33691796,42571.0,42560.0,0.4494]
[1646350217339,0.19408692,42569.0,42560.0,0.4494]
[1646350217539,0.40893968,42571.0,42560.0,0.4494]
[1646350217540,0.17982054,42561.0,42560.0,0.4494]
[1646350217738,0.17982054,42561.0,42555.0,0.02144399]
[1646350219642,0.17982054,42561.0,42555.0,0.23684904]
[1646350219839,0.17982054,42561.0,42555.0,0.02144399]
[1646350220590,0.17982054,42561.0,42555.0,0.08022599]
[1646350221090,0.17982054,42561.0,42555.0,0.02144399]
[1646350224096,0.28364592,42560.0,42555.0,0.02144399]
[1646350224365,0.0472,42559.0,42555.0,0.02144399]
[1646350224568,0.35903,42557.0,42555.0,0.02144399]
[1646350224862,0.40623,42556.0,42555.0,0.02144399]
[1646350225062,0.0472,42556.0,42555.0,0.02144399]
[1646350236390,0.40623,42556.0,42555.0,0.02144399]
[1646350236592,0.0502,42556.0,42555.0,0.02144399]
[1646350237391,0.40923,42556.0,42555.0,0.02144399]
[1646350237593,0.0502,42556.0,42555.0,0.02144399]
[1646350237797,0.0472,42556.0,42555.0,0.02144399]
[1646350239240,0.0472,42556.0,42555.0,0.02137699]
[1646350239438,0.3472,42556.0,42555.0,0.02137699]
[1646350239639,0.3472,42556.0,42543.0,0.3187]
[1646350239640,0.3707,42556.0,42543.0,0.3187]
[1646350239843,0.19408692,42555.0,42543.0,0.3187]
[1646350240039,0.0472,42554.0,42543.0,0.3187]
[1646350240244,0.68253,42553.0,42540.0,0.2004]
[1646350240541,0.68253,42553.0,42536.0,0.5841]
[1646350240542,0.27452944,42541.0,42536.0,0.5841]
[1646350240740,0.17550624,42541.0,42536.0,0.4692]
[1646350241042,0.17550624,42541.0,42535.0,0.01175]
[1646350241242,0.47550624,42541.0,42535.0,0.01175]
[1646350241445,0.0472,42540.0,42532.0,0.4505]
[1646350241641,0.26713396,42540.0,42532.0,0.4505]
[1646350241842,0.26129885,42536.0,42532.0,0.4505]
[1646350242042,0.26129885,42536.0,42532.0,0.0011]
[1646350242846,0.15918587,42534.0,42532.0,0.0011]
[1646350245499,0.15918587,42534.0,42529.0,0.0005]
[1646350247445,0.0472,42537.0,42529.0,0.0005]
[1646350247649,0.26713396,42540.0,42529.0,0.0005]
[1646350248447,0.26713396,42540.0,42533.0,0.21418681]
[1646350248747,0.25131053,42538.0,42533.0,0.21418681]
[1646350249149,0.17161166,42541.0,42533.0,0.21418681]
[1646350249350,0.17161166,42541.0,42533.0,0.27300181]
[1646350249947,0.0472,42547.0,42533.0,0.27300181]
[1646350250148,0.22324584,42545.0,42537.0,0.1786409]
[1646350250349,0.22324584,42545.0,42533.0,0.39090181]
[1646350251094,0.18367262,42541.0,42533.0,0.39090181]
[1646350251294,0.18367262,42541.0,42533.0,0.27300181]
[1646350251495,0.18367262,42541.0,42533.0,0.21418681]
[1646350252495,0.17699169,42532.0,42531.0,0.4494]
[1646350252694,0.17699169,42532.0,42531.0,0.04814092]
[1646350253596,0.40174313,42532.0,42531.0,0.00110536]
[1646350253797,0.35347367,42532.0,42531.0,0.00110536]
[1646350254445,0.17699169,42532.0,42531.0,0.00110536]
[1646350254646,0.17699169,42532.0,42531.0,0.17270813]
[1646350254842,0.17699169,42532.0,42531.0,0.00110536]
[1646350262345,0.17699169,42532.0,42530.0,0.117624]
[1646350262556,0.17699169,42532.0,42529.0,0.0005]
[1646350262557,0.3,42531.0,42529.0,0.0005]
[1646350262746,0.35903,42530.0,42529.0,0.0005]
[1646350262944,0.35903,42530.0,42528.0,0.0033]
[1646350262945,0.70623,42530.0,42528.0,0.0033]
[1646350263145,0.65903,42529.0,42528.0,0.00300417]
[1646350263346,0.65903,42529.0,42528.0,0.00190417]
[1646350263347,0.70623,42529.0,42528.0,0.00190417]
[1646350264350,0.70623,42529.0,42528.0,4.17e-06]
[1646350264351,0.71798,42529.0,42528.0,4.17e-06]
[1646350264548,0.72198,42529.0,42528.0,4.17e-06]
[1646350264747,0.9161808,42529.0,42528.0,4.17e-06]
[1646350264948,1.072411,42529.0,42528.0,4.17e-06]
[1646350265150,0.8782102,42529.0,42528.0,4.17e-06]
[1646350265348,0.5779044,42526.0,42523.0,0.0011]
[1646350265597,0.35903,42524.0,42523.0,0.0011]
[1646350265796,0.70623,42524.0,42523.0,0.0011]
[1646350266698,0.70923,42524.0,42523.0,0.0011]
[1646350266898,0.76622828,42524.0,42519.0,0.0011]
[1646350267098,0.50903,42523.0,42519.0,0.0011]
[1646350267295,0.0472,42522.0,42519.0,0.0011]
[1646350267495,0.65903,42521.0,42519.0,0.0011]
[1646350267698,0.70623,42520.0,42519.0,0.0011]
[1646350267895,0.97228236,42520.0,42519.0,0.0011]
[1646350268701,0.97628236,42520.0,42519.0,0.0011]
[1646350269344,1.04051809,42520.0,42519.0,0.0011]
[1646350269746,0.97228236,42520.0,42519.0,0.0011]
[1646350271252,1.03860447,42520.0,42519.0,0.0011]
[1646350273898,1.03860447,42520.0,42513.0,0.0011]
[1646350273899,0.35903,42519.0,42513.0,0.0011]
[1646350274094,0.0472,42518.0,42513.0,0.0011]
[1646350274293,0.65903,42517.0,42513.0,0.0011]
[1646350274493,0.33237447,42520.0,42513.0,0.0011]
[1646350274494,0.70623,42516.0,42513.0,0.0011]
[1646350274693,0.40623,42516.0,42513.0,0.0011]
[1646350275792,0.70623,42516.0,42513.0,0.0011]
[1646350276395,0.40623,42516.0,42513.0,0.0011]
[1646350276596,0.70623,42516.0,42513.0,0.0011]
[1646350277247,0.40623,42516.0,42513.0,0.0011]
[1646350277644,0.0472,42516.0,42513.0,0.0011]
[1646350277845,0.40623,42516.0,42513.0,0.0011]
[1646350278044,0.0472,42516.0,42513.0,0.0011]
[1646350278246,0.0472,42522.0,42513.0,0.0011]
[1646350278744,0.001,42521.0,42513.0,0.0011]
[1646350279147,0.29706259,42520.0,42513.0,0.0011]
[1646350279743,0.29706259,42520.0,42514.0,0.000625]
[1646350279945,0.2050741,42519.0,42514.0,0.000625]
[1646350280597,0.2080741,42519.0,42514.0,0.000625]
[1646350280898,0.5080741,42519.0,42514.0,0.000625]
[1646350281100,0.0472,42518.0,42514.0,0.000625]
[1646350281705,0.35903,42517.0,42514.0,0.000625]
[1646350281902,0.0472,42518.0,42514.0,0.000625]
[1646350282504,0.0472,42518.0,42503.0,0.31159604]
[1646350282505,0.05809982,42516.0,42503.0,0.31159604]
[1646350282701,0.3,42515.0,42503.0,0.31159604]
[1646350282901,0.15910417,42509.0,42504.0,0.28033708]
[1646350283102,0.15910417,42509.0,42508.0,0.02353329]
[1646350283903,0.0472,42516.0,42508.0,0.02353329]
[1646350284104,0.15626179,42524.0,42508.0,0.117682]
[1646350284380,0.28061179,42526.0,42509.0,0.3]
[1646350284577,0.1126,42526.0,42509.0,0.3]
[1646350284978,0.42765825,42521.0,42511.0,0.16810311]
[1646350285177,0.42765825,42521.0,42512.0,0.358844]
[1646350285380,0.21989586,42519.0,42512.0,0.3]
[1646350285582,0.42765825,42521.0,42509.0,0.3]
[1646350286280,0.19397249,42511.0,42506.0,0.3]
[1646350286483,0.19397249,42511.0,42510.0,0.02353024]
[1646350287282,0.00401637,42509.0,42504.0,0.29233989]
[1646350287481,0.00401637,42509.0,42508.0,0.11646976]
[1646350287688,0.00401637,42509.0,42508.0,0.62904948]
[1646350288197,0.00401637,42509.0,42508.0,0.62404948]
[1646350288800,0.00401637,42509.0,42508.0,0.41146976]
[1646350292843,0.00401637,42509.0,42508.0,0.11146976]
[1646350295893,0.1960061,42509.0,42508.0,0.11146976]
[1646350296693,0.1970061,42509.0,42508.0,0.11146976]
[1646350297893,0.1960061,42509.0,42508.0,0.11146976]
[1646350300552,0.1960061,42509.0,42503.0,0.1175]
[1646350300751,0.1960061,42509.0,42500.0,0.5144]
[1646350300752,0.3,42508.0,42500.0,0.2144]
[1646350300951,0.0472,42507.0,42500.0,0.2144]
[1646350301150,0.0472,42507.0,42500.0,0.0011]
[1646350302157,0.0472,42507.0,42502.0,0.20368277]
[1646350302454,0.00401637,42509.0,42502.0,0.20368277]
[1646350302853,0.00401637,42509.0,42503.0,0.3]
[1646350303499,0.00401637,42509.0,42503.0,0.417699]
[1646350307254,0.19821717,42509.0,42503.0,0.417699]
[1646350307458,0.19821717,42509.0,42503.0,0.117699]
[1646350308754,0.19821717,42509.0,42503.0,0.417699]
[1646350308955,0.19821717,42509.0,42503.0,0.117699]
[1646350309960,0.19821717,42509.0,42503.0,0.417699]
[1646350310162,0.19821717,42509.0,42503.0,0.600046]
[1646350310358,0.00401637,42509.0,42504.0,0.1735]
[1646350311597,0.00401637,42509.0,42505.0,0.15]
[1646350311897,0.00401637,42509.0,42506.0,0.358849]
[1646350312296,0.00401637,42509.0,42507.0,0.1]
[1646350312501,0.00401637,42509.0,42505.0,0.058849]
[1646350313299,0.00401637,42509.0,42506.0,0.058849]
[1646350319005,0.20401637,42509.0,42506.0,0.058849]
[1646350320505,0.20401637,42509.0,42503.0,0.217699]
[1646350320706,0.39821717,42509.0,42503.0,0.217699]
[1646350321856,0.1899623,42508.0,42503.0,0.217699]
[1646350322252,0.1899623,42508.0,42503.0,0.117699]
[1646350323052,0.1899623,42508.0,42502.0,0.058857]
[1646350323255,0.2254299,42503.0,42500.0,0.0011]
[1646350323453,0.1942008,42506.0,42501.0,0.70586]
[1646350323650,0.2414008,42505.0,42501.0,0.70586]
[1646350323852,0.0472,42504.0,42501.0,0.70586]
[1646350324454,0.25520989,42504.0,42501.0,0.70586]
[1646350324853,0.44941069,42504.0,42501.0,0.70586]
[1646350325054,0.25520989,42504.0,42501.0,0.70586]
[1646350325256,0.44941069,42504.0,42501.0,0.70586]
[1646350325502,0.2414008,42504.0,42501.0,0.70586]